[Event "Late-Titled-Tuesday-Blitz-February-20-2024"]
[Site "Chess.com"]
[Date "2024.02.20"]
[Round "9"]
[White "DefiantChair"]
[Black "Kosak12"]
[Result "0-1"]
[WhiteElo "2612"]
[BlackElo "2808"]
[TimeControl "180+1"]
[EndTime "15:45:36 PST"]
[Termination "Kosak12 won by checkmate"]

1. e4 {[%clk 0:03:00.9]} 1... e6 {[%clk 0:02:50]} 2. d4 {[%clk 0:03:00.9]} 2...
d5 {[%clk 0:02:50.2]} 3. Nd2 {[%clk 0:03:01.6]} 3... c5 {[%clk 0:02:48.4]} 4.
exd5 {[%clk 0:03:01.8]} 4... Qxd5 {[%clk 0:02:47.4]} 5. Ngf3 {[%clk 0:03:02.7]}
5... cxd4 {[%clk 0:02:47.6]} 6. Bc4 {[%clk 0:03:03.4]} 6... Qd7 {[%clk
0:02:47.8]} 7. O-O {[%clk 0:03:04.3]} 7... Nc6 {[%clk 0:02:48.1]} 8. Nb3 {[%clk
0:03:03.8]} 8... a6 {[%clk 0:02:48.2]} 9. Nbxd4 {[%clk 0:03:03.8]} 9... Nxd4
{[%clk 0:02:48.5]} 10. Nxd4 {[%clk 0:03:04.7]} 10... b5 {[%clk 0:02:49]} 11. Bb3
{[%clk 0:03:04.4]} 11... Bb7 {[%clk 0:02:49.3]} 12. Re1 {[%clk 0:03:02.7]} 12...
Nf6 {[%clk 0:02:23.4]} 13. Bg5 {[%clk 0:03:01.2]} 13... Be7 {[%clk 0:02:21.1]}
14. c3 {[%clk 0:02:57.3]} 14... Ne4 {[%clk 0:01:34.7]} 15. Bxe7 {[%clk
0:02:52.2]} 15... Qxe7 {[%clk 0:01:29.8]} 16. Qg4 {[%clk 0:02:48.9]} 16... h5
{[%clk 0:00:29.1]} 17. Qf4 {[%clk 0:02:45.4]} 17... e5 {[%clk 0:00:24.3]} 18.
Bxf7+ {[%clk 0:02:31.7]} 18... Kf8 {[%clk 0:00:16.7]} 19. Qf5 {[%clk 0:02:31.1]}
19... Qxf7 {[%clk 0:00:17]} 20. Qxe5 {[%clk 0:01:35.8]} 20... Re8 {[%clk
0:00:16.8]} 21. Qf5 {[%clk 0:01:32]} 21... Qxf5 {[%clk 0:00:16.9]} 22. Nxf5
{[%clk 0:01:32.9]} 22... g6 {[%clk 0:00:16.7]} 23. Ne3 {[%clk 0:01:31.5]} 23...
Kf7 {[%clk 0:00:17]} 24. Re2 {[%clk 0:01:28.7]} 24... Rd8 {[%clk 0:00:17.1]} 25.
Rae1 {[%clk 0:01:28.1]} 25... Rhe8 {[%clk 0:00:17.8]} 26. Nc2 {[%clk 0:01:24.1]}
26... Nc5 {[%clk 0:00:17.1]} 27. Nd4 {[%clk 0:01:21.2]} 27... Rxe2 {[%clk
0:00:16]} 28. Rxe2 {[%clk 0:01:21.8]} 28... Re8 {[%clk 0:00:16.7]} 29. Rxe8
{[%clk 0:01:21]} 29... Kxe8 {[%clk 0:00:17.6]} 30. f3 {[%clk 0:01:18.9]} 30...
Na4 {[%clk 0:00:17.8]} 31. c4 {[%clk 0:01:14.1]} 31... bxc4 {[%clk 0:00:16.9]}
32. b3 {[%clk 0:01:13.9]} 32... cxb3 {[%clk 0:00:17.3]} 33. axb3 {[%clk
0:01:14.8]} 33... Nc5 {[%clk 0:00:16.6]} 34. Kf2 {[%clk 0:01:14.7]} 34... Ke7
{[%clk 0:00:17]} 35. Ke3 {[%clk 0:01:14.8]} 35... Bd5 {[%clk 0:00:16.2]} 36. b4
{[%clk 0:01:14.5]} 36... Ne6 {[%clk 0:00:16.4]} 37. Nc2 {[%clk 0:01:10.8]} 37...
Kd6 {[%clk 0:00:16.3]} 38. g3 {[%clk 0:01:10.4]} 38... Bc6 {[%clk 0:00:13.8]}
39. f4 {[%clk 0:01:10.2]} 39... Nc7 {[%clk 0:00:12.9]} 40. Kd4 {[%clk
0:01:07.7]} 40... Bd5 {[%clk 0:00:12.1]} 41. Ne3 {[%clk 0:01:07]} 41... Nb5+
{[%clk 0:00:10.8]} 42. Kd3 {[%clk 0:01:07.1]} 42... Be6 {[%clk 0:00:10.5]} 43.
Ke4 {[%clk 0:01:02]} 43... Na7 {[%clk 0:00:10.2]} 44. Kd4 {[%clk 0:00:58.1]}
44... Nc6+ {[%clk 0:00:10.3]} 45. Kc3 {[%clk 0:00:58.3]} 45... Bf7 {[%clk
0:00:06.9]} 46. f5 {[%clk 0:00:54.4]} 46... g5 {[%clk 0:00:06.8]} 47. f6 {[%clk
0:00:51.9]} 47... Ke6 {[%clk 0:00:06.7]} 48. Nc4 {[%clk 0:00:46.2]} 48... Kxf6
{[%clk 0:00:06.7]} 49. Nd6 {[%clk 0:00:46.5]} 49... Be6 {[%clk 0:00:06]} 50.
Ne4+ {[%clk 0:00:46.4]} 50... Kg6 {[%clk 0:00:06.2]} 51. Nc5 {[%clk 0:00:45.2]}
51... Bc8 {[%clk 0:00:06.6]} 52. Kc4 {[%clk 0:00:45.3]} 52... Kf5 {[%clk
0:00:06.8]} 53. b5 {[%clk 0:00:42.8]} 53... Ne5+ {[%clk 0:00:06.2]} 54. Kd5
{[%clk 0:00:42.6]} 54... axb5 {[%clk 0:00:06.1]} 55. Kd4 {[%clk 0:00:41.8]}
55... Nf3+ {[%clk 0:00:05.9]} 56. Ke3 {[%clk 0:00:42.2]} 56... Nxh2 {[%clk
0:00:06.2]} 57. Ne4 {[%clk 0:00:42.9]} 57... Ng4+ {[%clk 0:00:06.5]} 58. Kd4
{[%clk 0:00:43.1]} 58... Be6 {[%clk 0:00:04.3]} 59. Nd6+ {[%clk 0:00:42.6]}
59... Kg6 {[%clk 0:00:04.8]} 60. Nxb5 {[%clk 0:00:42.9]} 60... Bd7 {[%clk
0:00:04.9]} 61. Nc3 {[%clk 0:00:40.2]} 61... Nh6 {[%clk 0:00:05.6]} 62. Ke3
{[%clk 0:00:40.2]} 62... Nf5+ {[%clk 0:00:06]} 63. Kf2 {[%clk 0:00:40.3]} 63...
Bc6 {[%clk 0:00:06.8]} 64. Ne2 {[%clk 0:00:39.5]} 64... Kf6 {[%clk 0:00:06.8]}
65. Ng1 {[%clk 0:00:38.3]} 65... Nd4 {[%clk 0:00:07]} 66. Nh3 {[%clk 0:00:37.7]}
66... Kf5 {[%clk 0:00:06.3]} 67. Ng1 {[%clk 0:00:33.3]} 67... g4 {[%clk
0:00:06.7]} 68. Ke3 {[%clk 0:00:32.9]} 68... Ke5 {[%clk 0:00:07.1]} 69. Kf2
{[%clk 0:00:31.9]} 69... Bb5 {[%clk 0:00:07.3]} 70. Ke3 {[%clk 0:00:30.6]} 70...
Nf5+ {[%clk 0:00:07.7]} 71. Kf2 {[%clk 0:00:30.7]} 71... Ke4 {[%clk 0:00:08.2]}
72. Kg2 {[%clk 0:00:30.6]} 72... Ke3 {[%clk 0:00:08.5]} 73. Kh2 {[%clk
0:00:30.8]} 73... Kf2 {[%clk 0:00:08.8]} 74. Kh1 {[%clk 0:00:29.8]} 74... Nxg3+
{[%clk 0:00:09.2]} 75. Kh2 {[%clk 0:00:30.5]} 75... Nf1+ {[%clk 0:00:10.1]} 76.
Kh1 {[%clk 0:00:31.2]} 76... Bc6+ {[%clk 0:00:11]} 77. Nf3 {[%clk 0:00:31.1]}
77... Bxf3# {[%clk 0:00:11]} 0-1

[Event "Late-Titled-Tuesday-Blitz-February-20-2024"]
[Site "Chess.com"]
[Date "2024.02.20"]
[Round "9"]
[White "Fh2411"]
[Black "Sargsyan_Shant"]
[Result "0-1"]
[WhiteElo "2618"]
[BlackElo "2908"]
[TimeControl "180+1"]
[EndTime "15:45:43 PST"]
[Termination "Sargsyan_Shant won by resignation"]

1. d4 {[%clk 0:02:55.6]} 1... d6 {[%clk 0:02:23]} 2. Nf3 {[%clk 0:02:51.3]} 2...
Nf6 {[%clk 0:02:22.6]} 3. Bf4 {[%clk 0:02:41.8]} 3... g6 {[%clk 0:02:20.8]} 4.
e3 {[%clk 0:02:42]} 4... Bg7 {[%clk 0:02:21.1]} 5. h3 {[%clk 0:02:38.8]} 5...
O-O {[%clk 0:02:22]} 6. Be2 {[%clk 0:02:38.7]} 6... c5 {[%clk 0:02:21]} 7. c3
{[%clk 0:02:32.7]} 7... Qb6 {[%clk 0:02:21]} 8. Qb3 {[%clk 0:02:32.4]} 8... Nc6
{[%clk 0:02:21]} 9. Nbd2 {[%clk 0:02:31.2]} 9... Be6 {[%clk 0:02:21.1]} 10. Qxb6
{[%clk 0:02:30.9]} 10... axb6 {[%clk 0:02:22]} 11. a3 {[%clk 0:02:31.3]} 11...
Nd5 {[%clk 0:02:19.2]} 12. Bh2 {[%clk 0:02:28]} 12... Nc7 {[%clk 0:02:19.4]} 13.
O-O {[%clk 0:02:25.2]} 13... Rfc8 {[%clk 0:02:19]} 14. Rfe1 {[%clk 0:02:12.4]}
14... h6 {[%clk 0:02:13]} 15. Rac1 {[%clk 0:02:07.3]} 15... Na5 {[%clk
0:02:09.5]} 16. e4 {[%clk 0:01:59.1]} 16... Bd7 {[%clk 0:02:08.4]} 17. d5 {[%clk
0:01:22.9]} 17... Ba4 {[%clk 0:02:07.7]} 18. Bd1 {[%clk 0:01:15.8]} 18... Bxd1
{[%clk 0:01:58.9]} 19. Rcxd1 {[%clk 0:01:09.9]} 19... c4 {[%clk 0:01:55.7]} 20.
Nf1 {[%clk 0:00:49.3]} 20... Na6 {[%clk 0:01:51.7]} 21. e5 {[%clk 0:00:48.6]}
21... Bf8 {[%clk 0:01:47.9]} 22. Nd4 {[%clk 0:00:45.2]} 22... Nc7 {[%clk
0:01:39.6]} 23. Nc2 {[%clk 0:00:42.5]} 23... Nb3 {[%clk 0:01:37.7]} 24. Nb4
{[%clk 0:00:38.1]} 24... Nc5 {[%clk 0:01:36]} 25. Ne3 {[%clk 0:00:36.2]} 25...
b5 {[%clk 0:01:36.2]} 26. Nec2 {[%clk 0:00:36.1]} 26... Na4 {[%clk 0:01:31.2]}
27. Rb1 {[%clk 0:00:35]} 27... Rd8 {[%clk 0:01:29.4]} 28. exd6 {[%clk
0:00:31.3]} 28... exd6 {[%clk 0:01:30.3]} 29. Nd4 {[%clk 0:00:31.6]} 29... Nb6
{[%clk 0:01:27.2]} 30. Rbd1 {[%clk 0:00:29.5]} 30... Rd7 {[%clk 0:01:25.1]} 31.
Re2 {[%clk 0:00:27.2]} 31... Bg7 {[%clk 0:01:25.3]} 32. Kf1 {[%clk 0:00:16.3]}
32... Na4 {[%clk 0:01:19.6]} 33. Nf3 {[%clk 0:00:13.3]} 33... Na6 {[%clk
0:01:12.9]} 34. Nxa6 {[%clk 0:00:05.6]} 34... bxa6 {[%clk 0:01:13.8]} 35. Ke1
{[%clk 0:00:05.8]} 35... Nc5 {[%clk 0:01:13.7]} 36. Kd2 {[%clk 0:00:04.5]} 36...
a5 {[%clk 0:01:11.1]} 37. Kc2 {[%clk 0:00:02.7]} 37... b4 {[%clk 0:01:11.5]} 38.
axb4 {[%clk 0:00:03.6]} 38... axb4 {[%clk 0:01:12.4]} 39. cxb4 {[%clk
0:00:04.1]} 39... Nd3 {[%clk 0:01:12.9]} 40. Rxd3 {[%clk 0:00:04.6]} 40... cxd3+
{[%clk 0:01:13.8]} 41. Kxd3 {[%clk 0:00:05.5]} 41... Rb8 {[%clk 0:01:11.4]} 42.
Re4 {[%clk 0:00:05.8]} 42... Bxb2 {[%clk 0:01:06]} 43. Ne1 {[%clk 0:00:05.4]}
43... Be5 {[%clk 0:00:59.9]} 44. Bxe5 {[%clk 0:00:04.9]} 44... f5 {[%clk
0:00:59.8]} 45. Rc4 {[%clk 0:00:04.5]} 45... dxe5 {[%clk 0:01:00]} 46. Rc5
{[%clk 0:00:04.5]} 46... Rxb4 {[%clk 0:01:00]} 47. Nc2 {[%clk 0:00:05.3]} 47...
Rb2 {[%clk 0:00:58.4]} 48. Kc3 {[%clk 0:00:05.5]} 48... Ra2 {[%clk 0:00:57.7]}
49. Kb3 {[%clk 0:00:05.9]} 49... Ra8 {[%clk 0:00:58]} 50. Kc4 {[%clk 0:00:06.2]}
50... Kf7 {[%clk 0:00:58.1]} 51. f3 {[%clk 0:00:05.2]} 51... h5 {[%clk
0:00:57.3]} 52. Rc6 {[%clk 0:00:05.5]} 52... Rad8 {[%clk 0:00:54]} 53. Nb4
{[%clk 0:00:05.8]} 53... h4 {[%clk 0:00:54.3]} 54. Kc5 {[%clk 0:00:05.7]} 54...
Kg7 {[%clk 0:00:53]} 55. d6 {[%clk 0:00:06.1]} 55... Kf6 {[%clk 0:00:53.2]} 56.
Kd5 {[%clk 0:00:06.7]} 56... e4 {[%clk 0:00:50.1]} 57. fxe4 {[%clk 0:00:06.7]}
57... fxe4 {[%clk 0:00:51]} 58. Kxe4 {[%clk 0:00:07.1]} 58... Rxd6 {[%clk
0:00:50.5]} 59. Rxd6+ {[%clk 0:00:07.6]} 59... Rxd6 {[%clk 0:00:51.4]} 60. Nd5+
{[%clk 0:00:07]} 60... Kg5 {[%clk 0:00:51.7]} 61. Ne3 {[%clk 0:00:07.1]} 61...
Ra6 {[%clk 0:00:50.4]} 62. Kf3 {[%clk 0:00:07.4]} 62... Ra3 {[%clk 0:00:50.7]}
63. Ke4 {[%clk 0:00:07.9]} 63... Ra4+ {[%clk 0:00:49.7]} 64. Kf3 {[%clk
0:00:08.3]} 64... Rf4+ {[%clk 0:00:50]} 65. Ke2 {[%clk 0:00:08.4]} 65... Rf8
{[%clk 0:00:50.9]} 66. Ng4 {[%clk 0:00:07.2]} 66... Kf4 {[%clk 0:00:50.9]} 67.
Kf2 {[%clk 0:00:06.7]} 67... Ra8 {[%clk 0:00:51.4]} 68. Nh2 {[%clk 0:00:05.7]}
68... Ra2+ {[%clk 0:00:51.3]} 69. Kg1 {[%clk 0:00:06.4]} 69... g5 {[%clk
0:00:50]} 70. Nf1 {[%clk 0:00:04.5]} 70... Ra1 {[%clk 0:00:46.1]} 71. Kf2 {[%clk
0:00:04.5]} 71... Ra2+ {[%clk 0:00:46.4]} 72. Kg1 {[%clk 0:00:04.8]} 72... Ke4
{[%clk 0:00:45.6]} 73. Nh2 {[%clk 0:00:04.4]} 73... Ke3 {[%clk 0:00:45.5]} 74.
Nf3 {[%clk 0:00:04.8]} 74... Ra1+ {[%clk 0:00:44.6]} 75. Kh2 {[%clk 0:00:05]}
75... Kf4 {[%clk 0:00:45.1]} 76. Ng1 {[%clk 0:00:04.4]} 76... Rf1 {[%clk
0:00:43.8]} 77. Nf3 {[%clk 0:00:04.5]} 77... Rxf3 {[%clk 0:00:43.2]} 78. gxf3
{[%clk 0:00:05.4]} 78... Kxf3 {[%clk 0:00:44.1]} 79. Kh1 {[%clk 0:00:06]} 79...
Kg3 {[%clk 0:00:45]} 80. Kg1 {[%clk 0:00:06.9]} 80... Kxh3 {[%clk 0:00:45.6]}
81. Kh1 {[%clk 0:00:07.5]} 81... g4 {[%clk 0:00:46.5]} 82. Kg1 {[%clk
0:00:07.6]} 82... g3 {[%clk 0:00:47.4]} 83. Kh1 {[%clk 0:00:08.2]} 83... Kg4
{[%clk 0:00:48]} 84. Kg1 {[%clk 0:00:09.1]} 84... h3 {[%clk 0:00:48.9]} 85. Kh1
{[%clk 0:00:09.3]} 85... Kf3 {[%clk 0:00:49.4]} 86. Kg1 {[%clk 0:00:09.8]} 86...
h2+ {[%clk 0:00:49.9]} 87. Kh1 {[%clk 0:00:09.9]} 87... g2+ {[%clk 0:00:50.2]}
88. Kxh2 {[%clk 0:00:10.5]} 88... Kf2 {[%clk 0:00:51.1]} 0-1

[Event "Late-Titled-Tuesday-Blitz-February-20-2024"]
[Site "Chess.com"]
[Date "2024.02.20"]
[Round "9"]
[White "Pelusiansky"]
[Black "Abund"]
[Result "1/2-1/2"]
[WhiteElo "2575"]
[BlackElo "2768"]
[TimeControl "180+1"]
[EndTime "15:45:56 PST"]
[Termination "Game drawn - insufficient material"]

1. c4 {[%clk 0:02:55.1]} 1... e5 {[%clk 0:02:58.8]} 2. Nc3 {[%clk 0:02:54.4]}
2... Nc6 {[%clk 0:02:59.2]} 3. g3 {[%clk 0:02:50.5]} 3... g6 {[%clk 0:02:59.1]}
4. Bg2 {[%clk 0:02:50.9]} 4... Bg7 {[%clk 0:02:59.8]} 5. e3 {[%clk 0:02:50.8]}
5... d6 {[%clk 0:02:52.3]} 6. Nge2 {[%clk 0:02:45.3]} 6... Nge7 {[%clk 0:02:48]}
7. O-O {[%clk 0:02:45]} 7... O-O {[%clk 0:02:48.7]} 8. d3 {[%clk 0:02:41.8]}
8... Be6 {[%clk 0:02:47.2]} 9. Nd5 {[%clk 0:02:40.1]} 9... f5 {[%clk 0:02:38.8]}
10. Rb1 {[%clk 0:02:35.3]} 10... a5 {[%clk 0:02:37.5]} 11. a3 {[%clk 0:02:34.7]}
11... Qd7 {[%clk 0:02:35.2]} 12. Nec3 {[%clk 0:02:31.9]} 12... Nc8 {[%clk
0:02:22.9]} 13. Nb5 {[%clk 0:02:29]} 13... Bxd5 {[%clk 0:02:20.6]} 14. Bxd5+
{[%clk 0:02:18.3]} 14... Kh8 {[%clk 0:02:20.4]} 15. Bg2 {[%clk 0:02:19.2]} 15...
a4 {[%clk 0:02:13.4]} 16. Bd2 {[%clk 0:02:15.8]} 16... Nb6 {[%clk 0:02:09.7]}
17. Nc3 {[%clk 0:02:03.4]} 17... Na5 {[%clk 0:02:07.8]} 18. Nd5 {[%clk 0:01:58]}
18... Nxd5 {[%clk 0:02:01.4]} 19. Bxd5 {[%clk 0:01:55.4]} 19... Nb3 {[%clk
0:01:58.4]} 20. Bc3 {[%clk 0:01:55.7]} 20... c6 {[%clk 0:01:57.6]} 21. Bg2
{[%clk 0:01:55.8]} 21... Rac8 {[%clk 0:01:54.9]} 22. Qe2 {[%clk 0:01:51.9]}
22... Qe6 {[%clk 0:01:42.9]} 23. Rbd1 {[%clk 0:01:50]} 23... Rce8 {[%clk
0:01:42.6]} 24. Rfe1 {[%clk 0:01:46.8]} 24... Re7 {[%clk 0:01:24.4]} 25. Qf1
{[%clk 0:01:43.3]} 25... Rfe8 {[%clk 0:01:22.8]} 26. h4 {[%clk 0:01:27.2]} 26...
Qf7 {[%clk 0:01:21.9]} 27. Kh2 {[%clk 0:01:15.1]} 27... f4 {[%clk 0:01:22.3]}
28. exf4 {[%clk 0:01:01.9]} 28... exf4 {[%clk 0:01:22.3]} 29. Rxe7 {[%clk
0:01:01.3]} 29... Rxe7 {[%clk 0:01:22.6]} 30. d4 {[%clk 0:00:48.8]} 30... f3
{[%clk 0:01:16.3]} 31. Bh1 {[%clk 0:00:37.5]} 31... Re4 {[%clk 0:00:55]} 32. Rd3
{[%clk 0:00:33.8]} 32... Qxc4 {[%clk 0:00:34.1]} 33. Bxf3 {[%clk 0:00:32.3]}
33... Re8 {[%clk 0:00:33.8]} 34. Qd1 {[%clk 0:00:29.8]} 34... d5 {[%clk
0:00:30.5]} 35. Be2 {[%clk 0:00:29.8]} 35... Qa6 {[%clk 0:00:28.9]} 36. Bf1
{[%clk 0:00:29.7]} 36... Qa8 {[%clk 0:00:28.8]} 37. Re3 {[%clk 0:00:29.3]} 37...
Rxe3 {[%clk 0:00:28.2]} 38. fxe3 {[%clk 0:00:29.7]} 38... Qe8 {[%clk 0:00:28.9]}
39. Qf3 {[%clk 0:00:29.8]} 39... Qe6 {[%clk 0:00:19.7]} 40. Bd3 {[%clk
0:00:28.9]} 40... Bf6 {[%clk 0:00:19.4]} 41. h5 {[%clk 0:00:28.9]} 41... Kg7
{[%clk 0:00:19.1]} 42. hxg6 {[%clk 0:00:29.1]} 42... hxg6 {[%clk 0:00:20]} 43.
Kg2 {[%clk 0:00:29.9]} 43... Bg5 {[%clk 0:00:19.6]} 44. Kf2 {[%clk 0:00:28.2]}
44... Bf6 {[%clk 0:00:17]} 45. Bc2 {[%clk 0:00:27.8]} 45... b6 {[%clk
0:00:15.1]} 46. Qe2 {[%clk 0:00:26.7]} 46... c5 {[%clk 0:00:12.2]} 47. Qd3
{[%clk 0:00:25.9]} 47... Qg4 {[%clk 0:00:07.4]} 48. dxc5 {[%clk 0:00:23.5]}
48... Nxc5 {[%clk 0:00:06.6]} 49. Bxf6+ {[%clk 0:00:23]} 49... Kxf6 {[%clk
0:00:07.5]} 50. Qxd5 {[%clk 0:00:22.5]} 50... Ne6 {[%clk 0:00:06.7]} 51. Qf3+
{[%clk 0:00:21.3]} 51... Qxf3+ {[%clk 0:00:06.7]} 52. Kxf3 {[%clk 0:00:22.2]}
52... Nc5 {[%clk 0:00:06.1]} 53. Kf4 {[%clk 0:00:21.4]} 53... g5+ {[%clk
0:00:05.8]} 54. Kg4 {[%clk 0:00:21.9]} 54... b5 {[%clk 0:00:05.8]} 55. e4 {[%clk
0:00:21.8]} 55... Nd7 {[%clk 0:00:05.8]} 56. Kf3 {[%clk 0:00:21.3]} 56... Ne5+
{[%clk 0:00:05.3]} 57. Kf2 {[%clk 0:00:18.9]} 57... Ke6 {[%clk 0:00:04.6]} 58.
Bb1 {[%clk 0:00:17.7]} 58... Kd6 {[%clk 0:00:04.3]} 59. Ke2 {[%clk 0:00:15.9]}
59... Nc4 {[%clk 0:00:03.6]} 60. Bd3 {[%clk 0:00:15.5]} 60... Nxb2 {[%clk
0:00:03]} 61. Bxb5 {[%clk 0:00:15.8]} 61... Kc5 {[%clk 0:00:03.5]} 62. Be8
{[%clk 0:00:15.9]} 62... Kd4 {[%clk 0:00:03.9]} 63. Kf3 {[%clk 0:00:15.5]} 63...
Ke5 {[%clk 0:00:02.5]} 64. Bc6 {[%clk 0:00:13.9]} 64... Nc4 {[%clk 0:00:02.7]}
65. Bxa4 {[%clk 0:00:14.3]} 65... Nxa3 {[%clk 0:00:03]} 66. Bc6 {[%clk
0:00:14.7]} 66... Nc4 {[%clk 0:00:03.1]} 67. Bd5 {[%clk 0:00:14.4]} 67... Nd6
{[%clk 0:00:03.1]} 68. Kg4 {[%clk 0:00:14.5]} 68... Kf6 {[%clk 0:00:03.7]} 69.
Kh5 {[%clk 0:00:11.2]} 69... Nb5 {[%clk 0:00:03.6]} 70. Bb7 {[%clk 0:00:11.1]}
70... Nc3 {[%clk 0:00:03.6]} 71. e5+ {[%clk 0:00:11.1]} 71... Kxe5 {[%clk
0:00:03.7]} 72. Kxg5 {[%clk 0:00:12]} 72... Nb5 {[%clk 0:00:03.1]} 73. g4 {[%clk
0:00:12]} 73... Nd6 {[%clk 0:00:03.7]} 74. Bf3 {[%clk 0:00:12]} 74... Ke6 {[%clk
0:00:03.9]} 75. Kg6 {[%clk 0:00:11.9]} 75... Ke5 {[%clk 0:00:03.6]} 76. g5
{[%clk 0:00:11.3]} 76... Kf4 {[%clk 0:00:03.9]} 77. Bd1 {[%clk 0:00:09.6]} 77...
Ne4 {[%clk 0:00:03.6]} 78. Bc2 {[%clk 0:00:10]} 78... Nxg5 {[%clk 0:00:04]}
1/2-1/2